[Event "Titled Tuesday Blitz May 24 Late 2022"]
[White "Yang, Kaiqi"]
[Black "Toncheva, Nadya"]
[WhiteFideId "8604398"]
[BlackFideId "2924056"]
[WhiteElo "2373"]
[BlackElo "1888"]
[Result "1-0"]
[Round "03"]
[TimeControl "180+1"]
[Date "2022.05.25"]
[WhiteClock "0:00:06"]
[BlackClock "0:00:04"]

1. d4 {[%clk 0:03:00]}  Nf6 {[%clk 0:02:59]} 2. c4 {[%clk 0:03:00]}  e6 {[%clk 0:02:59]} 3. Nc3 {[%clk 0:03:00]}  c5 {[%clk 0:02:59]} 4. d5 {[%clk 0:03:00]}  exd5 {[%clk 0:03:00]} 5. cxd5 {[%clk 0:03:01]}  d6 {[%clk 0:03:00]} 6. e4 {[%clk 0:03:01]}  g6 {[%clk 0:02:57]} 7. f4 {[%clk 0:03:02]}  Bg7 {[%clk 0:02:53]} 8. Bb5+ {[%clk 0:03:02]}  Nfd7 {[%clk 0:02:48]} 9. a4 {[%clk 0:03:03]}  O-O {[%clk 0:02:48]} 10. Nf3 {[%clk 0:03:02]}  Na6 {[%clk 0:02:47]} 11. O-O {[%clk 0:03:02]}  Nc7 {[%clk 0:02:46]} 12. Bd3 {[%clk 0:02:58]}  b6 {[%clk 0:02:40]} 13. Kh1 {[%clk 0:02:55]}  Ba6 {[%clk 0:02:39]} 14. Re1 {[%clk 0:02:38]}  Re8 {[%clk 0:02:34]} 15. Bc2 {[%clk 0:02:31]}  b5 {[%clk 0:02:26]} 16. axb5 {[%clk 0:02:28]}  Bxb5 {[%clk 0:02:24]} 17. Nxb5 {[%clk 0:02:21]}  Nxb5 {[%clk 0:02:24]} 18. Ba4 {[%clk 0:02:20]}  a6 {[%clk 0:02:06]} 19. Ra2 {[%clk 0:02:02]}  Rb8 {[%clk 0:01:42]} 20. Bd2 {[%clk 0:01:57]}  Nf6 {[%clk 0:01:11]} 21. Qc2 {[%clk 0:01:49]}  Re7 {[%clk 0:01:10]} 22. Bxb5 {[%clk 0:01:35]}  axb5 {[%clk 0:00:54]} 23. b4 {[%clk 0:01:35]}  Qe8 {[%clk 0:00:35]} 24. bxc5 {[%clk 0:00:59]}  dxc5 {[%clk 0:00:27]} 25. e5 {[%clk 0:00:45]}  Nxd5 {[%clk 0:00:25]} 26. Qxc5 {[%clk 0:00:45]}  Rd7 {[%clk 0:00:22]} 27. Ng5 {[%clk 0:00:25]}  b4 {[%clk 0:00:19]} 28. e6 {[%clk 0:00:25]}  fxe6 {[%clk 0:00:14]} 29. Nxe6 {[%clk 0:00:25]}  Qe7 {[%clk 0:00:08]} 30. Qf2 {[%clk 0:00:13]}  Qf6 {[%clk 0:00:06]} 31. Nxg7 {[%clk 0:00:12]}  Kxg7 {[%clk 0:00:05]} 32. Bc1 {[%clk 0:00:11]}  b3 {[%clk 0:00:04]} 33. Bb2 {[%clk 0:00:10]}  Nc3 {[%clk 0:00:04]} 34. Ra3 {[%clk 0:00:08]}  Rc7 {[%clk 0:00:02]} 35. h3 {[%clk 0:00:08]}  Rbc8 {[%clk 0:00:01]} 36. Rxb3 {[%clk 0:00:08]}  Kh6 {[%clk 0:00:02]} 37. Qe3 {[%clk 0:00:04]}  Nd5 {[%clk 0:00:02]} 38. Bxf6 {[%clk 0:00:04]}  Nxe3 {[%clk 0:00:02]} 39. Rbxe3 {[%clk 0:00:05]}  Rc1 {[%clk 0:00:02]} 40. Bg5+ {[%clk 0:00:05]}  Kg7 {[%clk 0:00:02]} 41. Rxc1 {[%clk 0:00:06]}  Rxc1+ {[%clk 0:00:01]} 42. Kh2 {[%clk 0:00:07]}  Rc6 {[%clk 0:00:01]} 43. Re7+ {[%clk 0:00:07]}  Kg8 {[%clk 0:00:02]} 44. Bh6 {[%clk 0:00:07]}  Ra6 {[%clk 0:00:02]} 45. Kg3 {[%clk 0:00:06]}  Ra3+ {[%clk 0:00:01]} 46. Kg4 {[%clk 0:00:07]}  Ra6 {[%clk 0:00:02]} 47. Kg5 {[%clk 0:00:07]}  Ra8 {[%clk 0:00:03]} 48. g4 {[%clk 0:00:05]}  Ra6 {[%clk 0:00:04]} 49. f5 {[%clk 0:00:06]}  Ra8 {[%clk 0:00:05]} 50. Rd7 {[%clk 0:00:05]}  gxf5 {[%clk 0:00:04]} 51. gxf5 {[%clk 0:00:05]}  Re8 {[%clk 0:00:05]} 52. f6 {[%clk 0:00:05]}  Kh8 {[%clk 0:00:04]} 53. Bg7+ {[%clk 0:00:05]}  Kg8 {[%clk 0:00:04]} 54. f7+ {[%clk 0:00:05]}  Kxg7 {[%clk 0:00:04]} 55. fxe8=Q# {[%clk 0:00:06]} 1-0


[Site "https://www.chess.com"]

[Event "Titled Tuesday Blitz May 24 Late 2022"]
[White "Yuan, Qingyu"]
[Black "Stevens, Christian"]
[WhiteFideId "8609772"]
[BlackFideId "2604450"]
[WhiteElo "2359"]
[BlackElo "2536"]
[Result "1/2-1/2"]
[Round "03"]
[TimeControl "180+1"]
[Date "2022.05.25"]
[WhiteClock "0:00:07"]
[BlackClock "0:00:05"]

1. e4 {[%clk 0:03:00]}  c6 {[%clk 0:02:59]} 2. Nf3 {[%clk 0:03:01]}  d5 {[%clk 0:02:59]} 3. Nc3 {[%clk 0:03:01]}  dxe4 {[%clk 0:02:54]} 4. Nxe4 {[%clk 0:03:02]}  Nd7 {[%clk 0:02:52]} 5. d4 {[%clk 0:02:57]}  Ngf6 {[%clk 0:02:51]} 6. Neg5 {[%clk 0:02:56]}  h6 {[%clk 0:02:45]} 7. Nh3 {[%clk 0:02:49]}  e6 {[%clk 0:02:24]} 8. Nf4 {[%clk 0:02:48]}  Bd6 {[%clk 0:02:20]} 9. Bd3 {[%clk 0:02:38]}  O-O {[%clk 0:02:17]} 10. O-O {[%clk 0:02:33]}  e5 {[%clk 0:02:11]} 11. dxe5 {[%clk 0:02:32]}  Nxe5 {[%clk 0:02:12]} 12. Be2 {[%clk 0:02:23]}  Qc7 {[%clk 0:02:06]} 13. Nd4 {[%clk 0:02:09]}  Re8 {[%clk 0:01:55]} 14. c3 {[%clk 0:02:00]}  Bg4 {[%clk 0:01:54]} 15. h3 {[%clk 0:01:40]}  Bxe2 {[%clk 0:01:52]} 16. Nfxe2 {[%clk 0:01:39]}  Rad8 {[%clk 0:01:50]} 17. Qc2 {[%clk 0:01:39]}  Ng6 {[%clk 0:01:39]} 18. a4 {[%clk 0:01:29]}  Nf4 {[%clk 0:01:34]} 19. Bxf4 {[%clk 0:01:28]}  Bxf4 {[%clk 0:01:33]} 20. Rfe1 {[%clk 0:01:15]}  Bh2+ {[%clk 0:01:29]} 21. Kh1 {[%clk 0:01:13]}  Be5 {[%clk 0:01:19]} 22. Nf3 {[%clk 0:01:09]}  Bd6 {[%clk 0:01:11]} 23. Ned4 {[%clk 0:01:08]}  Bf8 {[%clk 0:01:07]} 24. Kg1 {[%clk 0:01:06]}  a6 {[%clk 0:00:58]} 25. Qf5 {[%clk 0:01:03]}  Rd5 {[%clk 0:00:54]} 26. Qc2 {[%clk 0:01:02]}  Red8 {[%clk 0:00:49]} 27. Re2 {[%clk 0:00:59]}  g6 {[%clk 0:00:47]} 28. Rae1 {[%clk 0:00:49]}  c5 {[%clk 0:00:46]} 29. Nb3 {[%clk 0:00:49]}  R5d7 {[%clk 0:00:31]} 30. Nbd2 {[%clk 0:00:46]}  Bg7 {[%clk 0:00:29]} 31. Nc4 {[%clk 0:00:45]}  b5 {[%clk 0:00:26]} 32. axb5 {[%clk 0:00:40]}  axb5 {[%clk 0:00:26]} 33. Na3 {[%clk 0:00:39]}  Qb7 {[%clk 0:00:23]} 34. Ne5 {[%clk 0:00:38]}  Rd5 {[%clk 0:00:20]} 35. c4 {[%clk 0:00:37]}  bxc4 {[%clk 0:00:20]} 36. Naxc4 {[%clk 0:00:35]}  Qb4 {[%clk 0:00:19]} 37. Nc6 {[%clk 0:00:34]}  Qb7 {[%clk 0:00:15]} 38. Nxd8 {[%clk 0:00:31]}  Rxd8 {[%clk 0:00:16]} 39. Re7 {[%clk 0:00:28]}  Qd5 {[%clk 0:00:16]} 40. b3 {[%clk 0:00:25]}  h5 {[%clk 0:00:15]} 41. Qe2 {[%clk 0:00:25]}  Rf8 {[%clk 0:00:14]} 42. Qd2 {[%clk 0:00:23]}  Qa8 {[%clk 0:00:12]} 43. Qd3 {[%clk 0:00:23]}  Nd5 {[%clk 0:00:12]} 44. R7e4 {[%clk 0:00:19]}  Nb4 {[%clk 0:00:11]} 45. Qd7 {[%clk 0:00:16]}  Nc2 {[%clk 0:00:09]} 46. Re8 {[%clk 0:00:16]}  Qa2 {[%clk 0:00:08]} 47. Rxf8+ {[%clk 0:00:16]}  Bxf8 {[%clk 0:00:08]} 48. Re8 {[%clk 0:00:15]}  Qa1+ {[%clk 0:00:03]} 49. Kh2 {[%clk 0:00:15]}  Qf6 {[%clk 0:00:04]} 50. Qc8 {[%clk 0:00:09]}  Qf4+ {[%clk 0:00:04]} 51. Kg1 {[%clk 0:00:08]}  Qc1+ {[%clk 0:00:04]} 52. Kh2 {[%clk 0:00:09]}  Qf4+ {[%clk 0:00:04]} 53. Kh1 {[%clk 0:00:07]}  Qc1+ {[%clk 0:00:04]} 54. Kh2 {[%clk 0:00:07]}  Qf4+ {[%clk 0:00:05]} 1/2-1/2


[Site "https://www.chess.com"]

[Event "Titled Tuesday Blitz May 24 Late 2022"]
[White "Zakhartsov, Vladimir"]
[Black "Vega Gutierrez, Sabrina"]
[WhiteFideId "4145097"]
[BlackFideId "2219026"]
[WhiteElo "2428"]
[BlackElo "2286"]
[Result "1-0"]
[Round "03"]
[TimeControl "180+1"]
[Date "2022.05.24"]
[WhiteClock "0:00:12"]
[BlackClock "0:00:01"]

1. d4 {[%clk 0:03:00]}  d5 {[%clk 0:03:00]} 2. Nf3 {[%clk 0:03:00]}  Nf6 {[%clk 0:02:59]} 3. c4 {[%clk 0:03:00]}  e6 {[%clk 0:02:59]} 4. Nc3 {[%clk 0:03:00]}  a6 {[%clk 0:02:57]} 5. cxd5 {[%clk 0:02:57]}  exd5 {[%clk 0:02:57]} 6. Bg5 {[%clk 0:02:57]}  Be6 {[%clk 0:02:58]} 7. Qb3 {[%clk 0:02:54]}  b5 {[%clk 0:02:36]} 8. Bxf6 {[%clk 0:02:52]}  Qxf6 {[%clk 0:02:34]} 9. a4 {[%clk 0:02:29]}  b4 {[%clk 0:02:18]} 10. Nxd5 {[%clk 0:02:15]}  Qd8 {[%clk 0:02:18]} 11. e4 {[%clk 0:02:15]}  c6 {[%clk 0:02:10]} 12. Qe3 {[%clk 0:01:48]}  cxd5 {[%clk 0:02:07]} 13. exd5 {[%clk 0:01:49]}  Qxd5 {[%clk 0:02:07]} 14. Rc1 {[%clk 0:01:50]}  Be7 {[%clk 0:01:40]} 15. Bc4 {[%clk 0:01:48]}  Qd6 {[%clk 0:00:58]} 16. Bd3 {[%clk 0:01:10]}  Nd7 {[%clk 0:00:46]} 17. O-O {[%clk 0:01:01]}  O-O {[%clk 0:00:45]} 18. d5 {[%clk 0:00:55]}  Bxd5 {[%clk 0:00:43]} 19. Rfd1 {[%clk 0:00:55]}  Nf6 {[%clk 0:00:35]} 20. Nd4 {[%clk 0:00:47]}  Rfe8 {[%clk 0:00:34]} 21. Nf5 {[%clk 0:00:46]}  Qe6 {[%clk 0:00:29]} 22. Qg3 {[%clk 0:00:42]}  g6 {[%clk 0:00:30]} 23. Re1 {[%clk 0:00:39]}  Qd7 {[%clk 0:00:29]} 24. Rc7 {[%clk 0:00:37]}  Qxf5 {[%clk 0:00:17]} 25. Bxf5 {[%clk 0:00:36]}  Bd6 {[%clk 0:00:18]} 26. f4 {[%clk 0:00:21]}  Bxc7 {[%clk 0:00:16]} 27. Rxe8+ {[%clk 0:00:21]}  Rxe8 {[%clk 0:00:17]} 28. Bd3 {[%clk 0:00:20]}  Bb6+ {[%clk 0:00:16]} 29. Kf1 {[%clk 0:00:20]}  Nh5 {[%clk 0:00:14]} 30. Qg5 {[%clk 0:00:18]}  Bc6 {[%clk 0:00:11]} 31. a5 {[%clk 0:00:17]}  Bd4 {[%clk 0:00:08]} 32. Bxa6 {[%clk 0:00:17]}  Re4 {[%clk 0:00:03]} 33. g3 {[%clk 0:00:16]}  f6 {[%clk 0:00:02]} 34. Qg4 {[%clk 0:00:15]}  Re3 {[%clk 0:00:02]} 35. Qc8+ {[%clk 0:00:14]}  Kg7 {[%clk 0:00:02]} 36. Qxc6 {[%clk 0:00:15]}  Bxb2 {[%clk 0:00:01]} 37. Be2 {[%clk 0:00:13]}  Kh6 {[%clk 0:00:01]} 38. a6 {[%clk 0:00:12]}  Bc3 {[%clk 0:00:01]} 39. a7 {[%clk 0:00:12]}  b3 {[%clk 0:00:01]} 40. a8=Q {[%clk 0:00:12]}  b2 {[%clk 0:00:01]} 41. Qab7 {[%clk 0:00:12]} 1-0


[Site "https://www.chess.com"]

[Event "Titled Tuesday Blitz May 24 Late 2022"]
[White "Antipov, Mikhail Al."]
[Black "Pershin, Denis"]
[WhiteFideId "4107012"]
[BlackFideId "24165506"]
[WhiteElo "2512"]
[BlackElo "2275"]
[Result "1-0"]
[Round "04"]
[TimeControl "180+1"]
[Date "2022.05.24"]
[WhiteClock "0:01:00"]
[BlackClock "0:00:02"]

1. e4 {[%clk 0:03:00]}  c6 {[%clk 0:03:00]} 2. d4 {[%clk 0:03:00]}  d5 {[%clk 0:03:01]} 3. exd5 {[%clk 0:03:01]}  cxd5 {[%clk 0:03:01]} 4. Bd3 {[%clk 0:03:02]}  Nc6 {[%clk 0:03:02]} 5. c3 {[%clk 0:03:02]}  Qc7 {[%clk 0:02:59]} 6. h3 {[%clk 0:03:02]}  Nf6 {[%clk 0:02:56]} 7. Nf3 {[%clk 0:03:01]}  e6 {[%clk 0:02:50]} 8. O-O {[%clk 0:02:59]}  Bd6 {[%clk 0:02:51]} 9. Re1 {[%clk 0:02:58]}  O-O {[%clk 0:02:49]} 10. Nbd2 {[%clk 0:02:47]}  b6 {[%clk 0:02:43]} 11. Qe2 {[%clk 0:02:42]}  Bb7 {[%clk 0:02:40]} 12. Ne5 {[%clk 0:02:42]}  Bxe5 {[%clk 0:02:40]} 13. dxe5 {[%clk 0:02:43]}  Nd7 {[%clk 0:02:40]} 14. Nf3 {[%clk 0:02:43]}  Rfe8 {[%clk 0:02:03]} 15. Bf4 {[%clk 0:02:32]}  Nc5 {[%clk 0:01:54]} 16. Bc2 {[%clk 0:02:30]}  Ne4 {[%clk 0:01:55]} 17. Ng5 {[%clk 0:01:59]}  Nxg5 {[%clk 0:01:24]} 18. Bxg5 {[%clk 0:02:00]}  Ne7 {[%clk 0:01:22]} 19. Rad1 {[%clk 0:01:50]}  Ng6 {[%clk 0:01:21]} 20. Bc1 {[%clk 0:01:35]}  Qc4 {[%clk 0:01:10]} 21. Qh5 {[%clk 0:01:26]}  Qxa2 {[%clk 0:01:05]} 22. Rd4 {[%clk 0:01:25]}  Qa5 {[%clk 0:00:40]} 23. Rh4 {[%clk 0:01:03]}  Nxh4 {[%clk 0:00:27]} 24. Qxh7+ {[%clk 0:01:02]}  Kf8 {[%clk 0:00:28]} 25. Bg5 {[%clk 0:01:02]}  Ng6 {[%clk 0:00:22]} 26. Bxg6 {[%clk 0:00:58]}  fxg6 {[%clk 0:00:23]} 27. Bf6 {[%clk 0:00:58]}  Re7 {[%clk 0:00:01]} 28. Qh8+ {[%clk 0:00:58]}  Kf7 {[%clk 0:00:02]} 29. Qxg7+ {[%clk 0:00:59]}  Ke8 {[%clk 0:00:02]} 30. Qxe7# {[%clk 0:01:00]} 1-0


[Site "https://www.chess.com"]

[Event "Titled Tuesday Blitz May 24 Late 2022"]
[White "Antonio, Jorge Carlos"]
[Black "Milchev, Nikolay"]
[WhiteFideId "113190"]
[BlackFideId "2906090"]
[WhiteElo "2247"]
[BlackElo "2449"]
[Result "1-0"]
[Round "04"]
[TimeControl "180+1"]
[Date "2022.05.25"]
[WhiteClock "0:00:38"]
[BlackClock "0:02:29"]

1. d4 {[%clk 0:03:00]}  Nf6 {[%clk 0:02:59]} 2. Nf3 {[%clk 0:03:00]}  g6 {[%clk 0:02:59]} 3. c4 {[%clk 0:02:59]}  Bg7 {[%clk 0:02:59]} 4. Nc3 {[%clk 0:02:57]}  O-O {[%clk 0:03:00]} 5. e4 {[%clk 0:02:58]}  d6 {[%clk 0:03:01]} 6. Be2 {[%clk 0:02:51]}  c5 {[%clk 0:03:01]} 7. dxc5 {[%clk 0:02:49]}  dxc5 {[%clk 0:03:01]} 8. Be3 {[%clk 0:02:45]}  b6 {[%clk 0:03:00]} 9. Qc2 {[%clk 0:02:42]}  Nc6 {[%clk 0:03:00]} 10. Rd1 {[%clk 0:02:41]}  Qc7 {[%clk 0:02:57]} 11. Nd5 {[%clk 0:02:38]}  Qb7 {[%clk 0:02:56]} 12. O-O {[%clk 0:02:33]}  Ng4 {[%clk 0:02:51]} 13. Bf4 {[%clk 0:02:30]}  Nge5 {[%clk 0:02:44]} 14. Nxe5 {[%clk 0:02:25]}  Nxe5 {[%clk 0:02:45]} 15. Bxe5 {[%clk 0:02:17]}  Bxe5 {[%clk 0:02:44]} 16. f4 {[%clk 0:02:16]}  Bd4+ {[%clk 0:02:44]} 17. Kh1 {[%clk 0:02:15]}  e6 {[%clk 0:02:45]} 18. Rxd4 {[%clk 0:02:08]}  cxd4 {[%clk 0:02:44]} 19. Nf6+ {[%clk 0:02:06]}  Kg7 {[%clk 0:02:45]} 20. e5 {[%clk 0:02:03]}  Qc7 {[%clk 0:02:45]} 21. Bd3 {[%clk 0:01:54]}  Bb7 {[%clk 0:02:44]} 22. Qf2 {[%clk 0:01:50]}  Rad8 {[%clk 0:02:35]} 23. Qh4 {[%clk 0:01:44]}  h6 {[%clk 0:02:34]} 24. b4 {[%clk 0:01:35]}  a5 {[%clk 0:02:32]} 25. Rf3 {[%clk 0:01:19]}  axb4 {[%clk 0:02:32]} 26. Qxh6+ {[%clk 0:00:39]}  Kxh6 {[%clk 0:02:29]} 27. Rh3+ {[%clk 0:00:38]} 1-0


[Site "https://www.chess.com"]

[Event "Titled Tuesday Blitz May 24 Late 2022"]
[White "Araujo Sanchez, Josue"]
[Black "Ansh M Shah"]
[WhiteFideId "6416896"]
[BlackFideId "25033379"]
[WhiteElo "2339"]
[BlackElo "1819"]
[Result "1-0"]
[Round "04"]
[TimeControl "180+1"]
[Date "2022.05.25"]
[WhiteClock "0:02:07"]
[BlackClock "0:00:57"]

1. e4 {[%clk 0:02:59]}  c6 {[%clk 0:02:59]} 2. Nc3 {[%clk 0:02:57]}  d5 {[%clk 0:03:00]} 3. Qf3 {[%clk 0:02:57]}  dxe4 {[%clk 0:02:59]} 4. Nxe4 {[%clk 0:02:55]}  Nf6 {[%clk 0:03:00]} 5. Bc4 {[%clk 0:02:54]}  e6 {[%clk 0:02:56]} 6. Ne2 {[%clk 0:02:50]}  Be7 {[%clk 0:02:56]} 7. O-O {[%clk 0:02:50]}  O-O {[%clk 0:02:57]} 8. d4 {[%clk 0:02:50]}  b5 {[%clk 0:02:56]} 9. Bd3 {[%clk 0:02:50]}  a6 {[%clk 0:02:55]} 10. a4 {[%clk 0:02:50]}  Nbd7 {[%clk 0:02:55]} 11. Nxf6+ {[%clk 0:02:49]}  Nxf6 {[%clk 0:02:53]} 12. axb5 {[%clk 0:02:48]}  Qd5 {[%clk 0:02:43]} 13. bxc6 {[%clk 0:02:43]}  Qxf3 {[%clk 0:02:41]} 14. gxf3 {[%clk 0:02:44]}  Nd5 {[%clk 0:02:39]} 15. c3 {[%clk 0:02:40]}  a5 {[%clk 0:02:33]} 16. Nf4 {[%clk 0:02:38]}  Nb6 {[%clk 0:02:04]} 17. Re1 {[%clk 0:02:36]}  Bd6 {[%clk 0:02:03]} 18. c4 {[%clk 0:02:34]}  Bb4 {[%clk 0:02:02]} 19. Re2 {[%clk 0:02:33]}  Rd8 {[%clk 0:02:02]} 20. Be3 {[%clk 0:02:32]}  Ba6 {[%clk 0:02:01]} 21. b3 {[%clk 0:02:32]}  Rdc8 {[%clk 0:01:56]} 22. d5 {[%clk 0:02:29]}  exd5 {[%clk 0:01:57]} 23. Bxb6 {[%clk 0:02:26]}  dxc4 {[%clk 0:01:53]} 24. Bxc4 {[%clk 0:02:24]}  Bxc4 {[%clk 0:01:53]} 25. bxc4 {[%clk 0:02:25]}  Rxc6 {[%clk 0:01:53]} 26. Nd5 {[%clk 0:02:25]}  Rxc4 {[%clk 0:01:51]} 27. Nxb4 {[%clk 0:02:22]}  Rxb4 {[%clk 0:01:52]} 28. Rxa5 {[%clk 0:02:22]}  Rc8 {[%clk 0:01:45]} 29. Rc5 {[%clk 0:02:21]}  Ra8 {[%clk 0:01:43]} 30. Rce5 {[%clk 0:02:19]}  Ra1+ {[%clk 0:01:23]} 31. Kg2 {[%clk 0:02:18]}  h6 {[%clk 0:01:23]} 32. Re8+ {[%clk 0:02:16]}  Kh7 {[%clk 0:01:23]} 33. Be3 {[%clk 0:02:16]}  Ra6 {[%clk 0:01:21]} 34. f4 {[%clk 0:02:12]}  h5 {[%clk 0:01:20]} 35. Re7 {[%clk 0:02:11]}  Rg6+ {[%clk 0:01:14]} 36. Kf3 {[%clk 0:02:11]}  f5 {[%clk 0:01:14]} 37. Rd2 {[%clk 0:02:09]}  Rb1 {[%clk 0:00:59]} 38. Rdd7 {[%clk 0:02:06]}  Rh1 {[%clk 0:01:00]} 39. Bd4 {[%clk 0:02:05]}  Rxh2 {[%clk 0:00:59]} 40. Bxg7 {[%clk 0:02:05]}  Rxg7 {[%clk 0:01:00]} 41. Rxg7+ {[%clk 0:02:05]}  Kh6 {[%clk 0:00:59]} 42. Rh7+ {[%clk 0:02:06]}  Kg6 {[%clk 0:01:00]} 43. Rdg7+ {[%clk 0:02:06]}  Kf6 {[%clk 0:01:01]} 44. Ra7 {[%clk 0:02:07]}  Kg6 {[%clk 0:00:57]} 45. Rhc7 {[%clk 0:02:07]}  h4 {[%clk 0:00:57]} 46. Rc6+ {[%clk 0:02:06]}  Kh5 {[%clk 0:00:57]} 47. Rh7# {[%clk 0:02:07]} 1-0


[Site "https://www.chess.com"]

[Event "Titled Tuesday Blitz May 24 Late 2022"]
[White "Barp, Alberto"]
[Black "Sydoryka, Vladyslav"]
[WhiteFideId "872555"]
[BlackFideId "14145928"]
[WhiteElo "2229"]
[BlackElo "2283"]
[Result "1-0"]
[Round "04"]
[TimeControl "180+1"]
[Date "2022.05.25"]
[WhiteClock "0:00:15"]
[BlackClock "0:00:02"]

1. d4 {[%clk 0:02:42]}  Nf6 {[%clk 0:02:58]} 2. c4 {[%clk 0:02:39]}  c5 {[%clk 0:02:57]} 3. d5 {[%clk 0:02:38]}  e6 {[%clk 0:02:57]} 4. Nc3 {[%clk 0:02:37]}  d6 {[%clk 0:02:58]} 5. e4 {[%clk 0:02:36]}  g6 {[%clk 0:02:58]} 6. Nge2 {[%clk 0:02:35]}  Bg7 {[%clk 0:02:55]} 7. Ng3 {[%clk 0:02:33]}  O-O {[%clk 0:02:41]} 8. Be2 {[%clk 0:02:25]}  exd5 {[%clk 0:02:40]} 9. cxd5 {[%clk 0:02:22]}  Re8 {[%clk 0:02:32]} 10. O-O {[%clk 0:02:16]}  a6 {[%clk 0:02:27]} 11. a4 {[%clk 0:02:13]}  Nbd7 {[%clk 0:02:28]} 12. Be3 {[%clk 0:02:09]}  h5 {[%clk 0:02:20]} 13. f3 {[%clk 0:02:05]}  h4 {[%clk 0:02:17]} 14. Nh1 {[%clk 0:02:02]}  Nh7 {[%clk 0:02:13]} 15. Nf2 {[%clk 0:02:01]}  f5 {[%clk 0:02:05]} 16. Qd2 {[%clk 0:01:58]}  Ne5 {[%clk 0:01:56]} 17. f4 {[%clk 0:01:55]}  Nf7 {[%clk 0:01:55]} 18. Bd3 {[%clk 0:01:50]}  Nf6 {[%clk 0:01:46]} 19. exf5 {[%clk 0:01:47]}  Bxf5 {[%clk 0:01:44]} 20. Bxf5 {[%clk 0:01:45]}  gxf5 {[%clk 0:01:45]} 21. Rfe1 {[%clk 0:01:42]}  Qd7 {[%clk 0:01:43]} 22. Qd3 {[%clk 0:01:39]}  Nh6 {[%clk 0:01:39]} 23. h3 {[%clk 0:01:35]}  Nh5 {[%clk 0:01:34]} 24. Rad1 {[%clk 0:01:26]}  Re7 {[%clk 0:01:23]} 25. Bd2 {[%clk 0:01:25]}  Rae8 {[%clk 0:01:22]} 26. Rxe7 {[%clk 0:01:24]}  Rxe7 {[%clk 0:01:23]} 27. b3 {[%clk 0:01:23]}  Ng3 {[%clk 0:01:18]} 28. Nh1 {[%clk 0:01:20]}  Bd4+ {[%clk 0:01:13]} 29. Kh2 {[%clk 0:01:19]}  Ne4 {[%clk 0:01:13]} 30. Ne2 {[%clk 0:01:15]}  Bf6 {[%clk 0:01:06]} 31. Be1 {[%clk 0:01:15]}  Qe8 {[%clk 0:01:03]} 32. Qf3 {[%clk 0:01:08]}  c4 {[%clk 0:00:36]} 33. bxc4 {[%clk 0:00:53]}  Qxa4 {[%clk 0:00:35]} 34. Nd4 {[%clk 0:00:46]}  Qxc4 {[%clk 0:00:32]} 35. Ne6 {[%clk 0:00:37]}  Nc5 {[%clk 0:00:31]} 36. Ng5 {[%clk 0:00:31]}  Qe2 {[%clk 0:00:26]} 37. Bxh4 {[%clk 0:00:27]}  Qxf3 {[%clk 0:00:25]} 38. Nxf3 {[%clk 0:00:28]}  Bxh4 {[%clk 0:00:25]} 39. Nxh4 {[%clk 0:00:29]}  b5 {[%clk 0:00:24]} 40. Ng3 {[%clk 0:00:28]}  b4 {[%clk 0:00:22]} 41. Nhxf5 {[%clk 0:00:28]}  Nxf5 {[%clk 0:00:22]} 42. Nxf5 {[%clk 0:00:29]}  Rd7 {[%clk 0:00:21]} 43. Nd4 {[%clk 0:00:25]}  a5 {[%clk 0:00:19]} 44. Nc6 {[%clk 0:00:24]}  b3 {[%clk 0:00:15]} 45. Nxa5 {[%clk 0:00:23]}  Ra7 {[%clk 0:00:15]} 46. Nc4 {[%clk 0:00:23]}  Ra2 {[%clk 0:00:12]} 47. Nxd6 {[%clk 0:00:19]}  b2 {[%clk 0:00:11]} 48. Nc4 {[%clk 0:00:19]}  Nd3 {[%clk 0:00:06]} 49. d6 {[%clk 0:00:17]}  Nf2 {[%clk 0:00:04]} 50. d7 {[%clk 0:00:16]}  Nxd1 {[%clk 0:00:04]} 51. d8=Q+ {[%clk 0:00:16]}  Kf7 {[%clk 0:00:04]} 52. Qxd1 {[%clk 0:00:15]}  Kf6 {[%clk 0:00:02]} 53. Qd4+ {[%clk 0:00:15]}  Kf7 {[%clk 0:00:02]} 54. Qd5+ {[%clk 0:00:15]} 1-0


[Site "https://www.chess.com"]

[Event "Titled Tuesday Blitz May 24 Late 2022"]
[White "Barria Zuniga, Daniel"]
[Black "Can, Melih Kaan"]
[WhiteFideId "3400816"]
[BlackFideId "6317383"]
[WhiteElo "2414"]
[BlackElo "2049"]
[Result "0-1"]
[Round "04"]
[TimeControl "180+1"]
[Date "2022.05.25"]
[WhiteClock "0:00:01"]
[BlackClock "0:00:02"]

1. c4 {[%clk 0:03:00]}  c5 {[%clk 0:02:59]} 2. g3 {[%clk 0:03:00]}  Nc6 {[%clk 0:02:59]} 3. Bg2 {[%clk 0:03:00]}  g6 {[%clk 0:02:59]} 4. Nc3 {[%clk 0:02:59]}  Bg7 {[%clk 0:03:00]} 5. a3 {[%clk 0:02:58]}  Nf6 {[%clk 0:03:00]} 6. Rb1 {[%clk 0:02:58]}  a5 {[%clk 0:02:59]} 7. e3 {[%clk 0:02:55]}  O-O {[%clk 0:02:59]} 8. Nge2 {[%clk 0:02:54]}  e6 {[%clk 0:02:59]} 9. d4 {[%clk 0:02:51]}  cxd4 {[%clk 0:02:59]} 10. exd4 {[%clk 0:02:51]}  d5 {[%clk 0:02:59]} 11. c5 {[%clk 0:02:50]}  b6 {[%clk 0:02:49]} 12. O-O {[%clk 0:02:44]}  bxc5 {[%clk 0:02:44]} 13. dxc5 {[%clk 0:02:45]}  Rb8 {[%clk 0:02:40]} 14. Bf4 {[%clk 0:02:39]}  Rb7 {[%clk 0:02:11]} 15. Bd6 {[%clk 0:02:39]}  Re8 {[%clk 0:02:10]} 16. Qa4 {[%clk 0:02:18]}  Bd7 {[%clk 0:02:08]} 17. Rfd1 {[%clk 0:02:16]}  Qa8 {[%clk 0:01:53]} 18. Qh4 {[%clk 0:02:02]}  Rc8 {[%clk 0:01:50]} 19. b4 {[%clk 0:01:58]}  Ne8 {[%clk 0:00:57]} 20. b5 {[%clk 0:00:47]}  Nxd6 {[%clk 0:00:56]} 21. cxd6 {[%clk 0:00:39]}  Ne5 {[%clk 0:00:47]} 22. a4 {[%clk 0:00:38]}  Nc4 {[%clk 0:00:43]} 23. Nxd5 {[%clk 0:00:36]}  exd5 {[%clk 0:00:37]} 24. Bxd5 {[%clk 0:00:37]}  Nb6 {[%clk 0:00:25]} 25. Bg2 {[%clk 0:00:18]}  Qb8 {[%clk 0:00:24]} 26. Nd4 {[%clk 0:00:16]}  Nc4 {[%clk 0:00:11]} 27. Nc6 {[%clk 0:00:14]}  Bxc6 {[%clk 0:00:06]} 28. Bxc6 {[%clk 0:00:14]}  Rxc6 {[%clk 0:00:05]} 29. bxc6 {[%clk 0:00:12]}  Rxb1 {[%clk 0:00:05]} 30. Rxb1 {[%clk 0:00:09]}  Qxb1+ {[%clk 0:00:05]} 31. Kg2 {[%clk 0:00:09]}  Nxd6 {[%clk 0:00:05]} 32. Qd8+ {[%clk 0:00:09]}  Bf8 {[%clk 0:00:05]} 33. c7 {[%clk 0:00:09]}  Qb7+ {[%clk 0:00:06]} 34. f3 {[%clk 0:00:10]}  Qc8 {[%clk 0:00:05]} 35. Kf2 {[%clk 0:00:10]}  Kg7 {[%clk 0:00:03]} 36. Ke3 {[%clk 0:00:10]}  Qe6+ {[%clk 0:00:03]} 37. Kd3 {[%clk 0:00:09]}  Be7 {[%clk 0:00:02]} 38. Qb8 {[%clk 0:00:04]}  Qc4+ {[%clk 0:00:02]} 39. Kd2 {[%clk 0:00:03]}  Bf6 {[%clk 0:00:02]} 40. Qb6 {[%clk 0:00:01]}  Qc3+ {[%clk 0:00:02]} 0-1


[Site "https://www.chess.com"]